Cogmind - Beta 14 @@@ ROGUE MODE // 2025.01.20 @ 03:14:18 Player: Beef Result: Destroyed by G-67 Veteran with Field Laser Performance ------------- Evolutions (4) 2000 Regions Visited (9) 1800 Robots Destroyed (206) 1030 Value Destroyed (7524) 7524 Prototype IDs (17) 340 Alien Tech Used (0) 0 Bonus (5994) 5994 TOTAL SCORE: 18688 Bonus ------- Triggered High Security 500 High Alert Combat Kills 2659 Follower Combat Kills 1838 Built Enhanced Grunts 300 A7 Reached Mainframe 300 Met R17 at Cetus 500 Friendly Fire -103 Cogmind --------- Core Integrity 0/850 Matter 106/300 Energy 89/100 System Corruption 18% Temperature Cool (0) Movement Treading (160) Location -6/Hub_04(d) Parts ------- > --- POWER (1) -------- (None) > --- PROPULSION (4) --- Centrium Heavy Treads Centrium Heavy Treads > --- UTILITY (7) ------ Large Storage Unit Improved Sensor Array Improved Light Armor Plating > --- WEAPON (3) ------- Segregator > --- INVENTORY (15) --- Advanced Terrain Scanner Advanced Terrain Scan Processor Peak State ------------ > --- POWER ------------ Quantum Reactor > --- PROPULSION ------- Centrium Heavy Treads Centrium Heavy Treads > --- UTILITY ---------- Improved Cooling System Large Storage Unit Advanced Signal Interpreter Centrium Medium Armor Plating Centrium Medium Armor Plating Improved Hacking Suite Improved Hacking Suite > --- WEAPON ----------- Gatling Laser KE Penetrator Advanced KE Penetrator > --- INVENTORY -------- Neutrino Core Centrium Heavy Treads Centrium Heavy Treads Improved Cooling System Improved Sensor Array Advanced Terrain Scanner Advanced Terrain Scan Processor Improved Light Armor Plating Centrium Medium Armor Plating Centrium Medium Armor Plating Experimental Thermal Shield Mini Grenade Launcher Datajack [Rating: 110] Favorites ----------- Power Heavy Ion Engine Engine Heavy Ion Engine Power Core Micro Nuclear Core Reactor Quantum Reactor Propulsion Improved Titanium Leg Treads Light Treads Leg Improved Titanium Leg Utility Large Storage Unit Device Improved Cooling System Storage Large Storage Unit Processor Improved Signal Interpreter Hackware Improved Hacking Suite Protection Centrium Medium Armor Plating Weapon Gatling Laser Energy Gun Gatling Laser Energy Cannon Neutron Cannon Ballistic Gun Assault Rifle Launcher Mini Grenade Launcher Slashing Weapon Segregator Special Melee Weapon Datajack Build | -11 -10 -9 -8 -7 -6 -6 -6 -6 -6 ------- Run | Yrd Mat Mat Mat Fac Fac Ext Cet Arc Hub Slots Evolved 8 | . . 2 2 2 2 . . . . Power . | . . . . . . . . . . Propulsion 2 | . . . 2 . . . . . . Utility 5 | . . 2 . 2 1 . . . . Weapon 1 | . . . . . 1 . . . . Parts Attached 225 | 5 8 20 56 45 9 42 13 2 25 Power 19 | 1 1 3 3 5 . 2 1 1 2 Engine 12 | 1 1 3 3 3 . 1 . . . Core 4 | . . . . 2 . 1 . . 1 Reactor 3 | . . . . . . . 1 1 1 Propulsion 66 | 2 3 7 20 14 1 11 6 . 2 Treads 26 | 2 3 7 7 . . 3 2 . 2 Leg 40 | . . . 13 14 1 8 4 . . Wheel . | . . . . . . . . . . Hover . | . . . . . . . . . . Flight . | . . . . . . . . . . Utility 67 | 1 1 7 8 17 7 16 2 . 8 Device 35 | . . 2 2 13 5 10 . . 3 Storage 5 | 1 . 1 2 . . 1 . . . Processor 8 | . 1 1 1 4 . 1 . . . Hackware 4 | . . . . . 2 2 . . . Protection 15 | . . 3 3 . . 2 2 . 5 Artifact . | . . . . . . . . . . Weapon 73 | 1 3 3 25 9 1 13 4 1 13 Energy Gun 29 | 1 . . 4 8 1 10 1 . 4 Energy Cannon 1 | . . . . . . . . . 1 Ballistic Gun 28 | . 3 3 13 . . 1 2 . 6 Ballistic Cannon . | . . . . . . . . . . Launcher 10 | . . . 8 1 . . . . 1 Special Weapon . | . . . . . . . . . . Impact Weapon . | . . . . . . . . . . Slashing Weapon 2 | . . . . . . 1 . . 1 Piercing Weapon . | . . . . . . . . . . Special Melee Weapon 3 | . . . . . . 1 1 1 . Unidentified Prototypes 7 | . . . 2 1 . 1 3 . . Corrupted Parts 3 | . . . . . . . 2 . 1 System Corruption 10 | . . . . . . . 7 . 3 Parts Lost 62 | . . 1 16 8 . 11 3 . 23 Power 4 | . . . 1 1 . . . . 2 Propulsion 18 | . . . 8 3 . 3 2 . 2 Utility 17 | . . 1 4 1 . 3 . . 8 Weapon 23 | . . . 3 3 . 5 1 . 11 Highest Loss Streak 19 | . . 1 6 3 . 5 3 . 19 To Critical Strikes 4 | . . . . 1 . . 2 . 1 Average Slot Usage (%) 94 | . 77 94 95 99 100 97 90 86 83 Engine 4 | . 14 11 8 4 . 1 . . . Core 1 | . . . . 2 6 4 1 . . Treads 9 | . 24 22 13 . . 4 6 13 13 Leg 16 | . . . 21 29 26 21 12 . . Device 11 | . . 9 7 16 15 17 6 6 6 Storage 7 | . 14 11 9 7 6 6 6 6 6 Processor 10 | . 1 11 9 20 17 6 6 6 5 Hackware 5 | . . . . . 6 11 13 13 12 Protection 4 | . . 7 6 . . 1 12 13 12 Energy Gun 9 | . 6 . 1 14 20 18 13 13 7 Ballistic Gun 8 | . 14 22 15 . . . 3 1 9 Peak Build Rating 110 | 5 8 16 33 51 59 67 108 108 110 Average Rating 46 | 3 5 14 23 40 57 59 89 102 104 On Entrance 44 | . 5 8 16 30 51 59 65 108 102 Naked Turns . | . . . . . . . . . . Heaviest Build 72 | 10 12 27 44 47 41 55 70 70 72 Greatest Support 160 | 40 40 40 77 76 76 76 160 160 160 Greatest Overweight (x) 3 | . 3 . . 1 . . 1 . . Average Overweight (x) . | . . . . . . . . . . Largest Inventory Capacity 15 | 8 8 10 15 15 15 15 15 15 15 Average Capacity 12 | 7 8 9 10 15 15 15 15 15 15 Most Carried 15 | 2 5 10 13 15 15 15 15 15 15 Average Carried 11 | . 2 9 9 13 14 14 14 15 13 Final Capacity 15 | 8 8 10 15 15 15 15 15 15 15 Final Carried 15 | 1 5 10 13 15 15 15 15 15 2 Class Distribution -------------------- 32% | Scavenger-Mutant 22% | Mutant 12% | Scavenger-Skirmisher 9% | Commander-Tank 9% | Scavenger-Tank 3% | Hacker-Skirmisher 3% | Commander-Mutant Dominant Class ---------------- Mutant | -10/Materials Scavenger-Mutant | -9/Materials Mutant | -8/Materials Scavenger-Mutant | -7/Factory Scavenger-Skirmisher | -6/Factory Scavenger-Tank | -6/Extension Commander-Tank | -6/Cetus Commander-Mutant | -6/Archives Scavenger-Tank | -6/Hub_04(d) Resources | -11 -10 -9 -8 -7 -6 -6 -6 -6 -6 ----------- Run | Yrd Mat Mat Mat Fac Fac Ext Cet Arc Hub Matter Collected 4206 | 150 197 831 1411 541 90 251 231 42 462 Remotely . | . . . . . . . . . . Salvage Created 8847 | . 334 998 2104 1336 182 1760 91 29 2013 Parts 415 | . 18 69 120 62 5 55 4 4 78 Haulers Intercepted 10 | . 1 3 3 . . 2 . . 1 Recyclers Shooed 11 | . 2 2 4 1 . 1 . . 1 Parts Field Recycled . | . . . . . . . . . . Retrieved Matter . | . . . . . . . . . . Parts Self-Destructed . | . . . . . . . . . . Prevented . | . . . . . . . . . . Kills | -11 -10 -9 -8 -7 -6 -6 -6 -6 -6 ------- Run | Yrd Mat Mat Mat Fac Fac Ext Cet Arc Hub Combat Hostiles Destroyed 156 | . 5 15 42 27 1 31 1 . 34 Guns 120 | . 5 15 23 21 1 28 . . 27 Cannons 3 | . . . . . . . . . 3 AOE 28 | . . . 19 5 . . . . 4 Classes Destroyed 17 | . 6 3 3 2 . 2 . . 1 Worker 10 | . 1 2 5 2 . . . . . Builder 9 | . . 1 3 3 . 1 . . 1 Tunneler 3 | . . 1 1 1 . . . . . Hauler 10 | . 1 3 3 . . 2 . . 1 Recycler 11 | . 2 . 3 3 1 2 . . . Operator 4 | . . . 1 . 1 1 . 1 . Watcher 11 | . 2 2 2 1 . 2 1 . 1 Swarmer 26 | . 3 . 4 6 . 11 . . 2 Grunt 82 | . 2 8 30 17 . 10 . . 15 Brawler 7 | . . . 2 . . . . . 5 Duelist 5 | . . . . . . 2 . . 3 Sentry 20 | . . 7 5 1 . 6 . . 1 Specialist 3 | . . . . . . . . . 3 Hunter 5 | . . . . 2 . . . . 3 Programmer 4 | . . . . 1 1 . . . 2 Heavy 1 | . . . 1 . . . . . . Behemoth 2 | . . . . . . 2 . . . Cetus Guard 1 | . . . . . . . 1 . . Best Kill Streak 11 | . 3 3 8 5 1 11 2 1 8 Combat Bots Only 8 | . 3 3 6 4 1 5 1 . 8 Max Kills in Single Turn 4 | . 2 1 4 3 1 2 1 1 2 Gunslinging 1 | . . . . . . 1 . . 1 Exploded 3 | . . . 3 3 . . . . 2 Melee . | . . . . . . . . . . Uniques/NPCs Destroyed . | . . . . . . . . . . Combat | -11 -10 -9 -8 -7 -6 -6 -6 -6 -6 -------- Run | Yrd Mat Mat Mat Fac Fac Ext Cet Arc Hub Hostile Shots Fired 1307 | . 56 100 275 138 6 241 33 . 458 Missed 445 | . 20 34 89 56 2 92 11 . 141 Damage Taken 14657 | . 411 900 3275 1232 61 2137 534 132 5975 Core 1873 | . 189 133 509 185 . 314 20 . 523 Absorbed by Shields 143 | . . . . . . 48 95 . . Ignored by Resistances 373 | . . . . . . 180 . . 193 Core Remaining (%) 54 | 100 24 66 7 73 . . . . . Volleys Fired 549 | 5 33 86 152 63 6 97 10 10 87 Largest 3 | 1 2 2 2 2 3 3 3 3 3 Hottest 241 | 50 50 43 90 160 240 241 190 200 198 Shots Fired 1200 | 5 60 172 283 126 18 253 21 21 241 Gun 1140 | 5 60 172 257 125 18 253 21 21 208 Cannon 30 | . . . . . . . . . 30 Launcher 30 | . . . 26 1 . . . . 3 Special . | . . . . . . . . . . Kinetic 574 | . 54 172 228 . . . 1 1 118 Thermal 586 | 5 6 . 29 120 18 253 20 20 115 Explosive 30 | . . . 26 1 . . . . 3 Electromagnetic 10 | . . . . 5 . . . . 5 Robot Hit Streak 24 | 4 9 11 12 12 9 24 10 10 16 Robot Miss Streak 5 | 1 4 3 4 5 2 5 5 3 5 Penetration Max 1 | . . . . . . . . . 1 Secondary Targets 23 | . 1 . 4 3 . 7 1 . 7 Max Gunslinging Chain 2 | . 1 . 1 1 . 1 1 . 2 Shots Hit Robots 869 | 4 36 115 175 104 14 222 16 18 165 Core Hits 592 | . 18 41 122 88 9 167 13 15 119 Critical Kills 8 | . . 1 4 . . . . . 3 Critical Parts Destroyed 9 | . . 1 3 . . . . . 5 Critical Strikes 28 | . 1 3 9 . . . 3 1 11 Burn 10 | . 1 . 2 . . . 3 1 3 Destroy 18 | . . 3 7 . . . . . 8 Melee Attacks 4 | . . . . . . 2 . 1 1 Thermal 1 | . . . . . . . . . 1 Impact . | . . . . . . . . . . Slashing 1 | . . . . . . 1 . . . Piercing . | . . . . . . . . . . Sneak Attacks 2 | . . . . . . 1 . 1 . Combat Hostiles . | . . . . . . . . . . Follow-up Attacks . | . . . . . . . . . . Damage Inflicted 22625 | 50 563 1603 5131 3144 323 5407 382 392 5630 Guns 17448 | 50 439 1594 2702 2440 323 5407 382 392 3719 Cannons 792 | . . . . . . . . . 792 Explosions 4286 | . 117 . 2423 681 . . . . 1065 Melee . | . . . . . . . . . . Ramming 99 | . 7 9 6 23 . . . . 54 Kinetic 6489 | . 376 1594 2345 . . . 20 28 2126 Thermal 12282 | 50 63 . 357 2886 323 5407 362 364 2470 Explosive 3657 | . 117 . 2423 170 . . . . 947 Electromagnetic 98 | . . . . 65 . . . . 33 Impact . | . . . . . . . . . . Slashing . | . . . . . . . . . . Piercing . | . . . . . . . . . . Highest Corruption 18 | . . . . 1 . . 7 7 18 Average Corruption 4 | . . . . 1 . . 5 7 7 Corruption Purged . | . . . . . . . . . . Corruption Blocked . | . . . . . . . . . . Effects 48 | . . . . 4 . . 11 4 29 Message Errors 14 | . . . . 1 . . 4 . 9 Matter Fused 10 | . . . . 1 . . 4 1 4 Heat Flow Errors 4 | . . . . 1 . . 1 2 . Energy Discharges 1 | . . . . . . . 1 . . Parts Rejected 2 | . . . . . . . . 1 1 Parts Fused 1 | . . . . . . . . . 1 Data Loss (minor) 3 | . . . . . . . 1 . 2 Data Loss (major) 3 | . . . . . . . . . 3 Misfires 4 | . . . . 1 . . . . 3 Alerts 1 | . . . . . . . . . 1 Weapon Failures 5 | . . . . . . . . . 5 Overload Shots . | . . . . . . . . . . Overflow Damage 129 | . 1 . 13 106 . . . . 9 Projectiles 8 | . . . . . . . . . 8 Explosions 121 | . 1 . 13 106 . . . . 1 Melee . | . . . . . . . . . . Knockbacks . | . . . . . . . . . . Impact . | . . . . . . . . . . Kinetic . | . . . . . . . . . . Secondary . | . . . . . . . . . . Self-Inflicted Damage 558 | . 113 . 79 178 . . . . 188 Shots 11 | . 1 . 3 3 . . . . 4 Rammed 13 | . 4 1 2 . . . . . 6 Targets Rammed 19 | . 4 1 3 4 . 1 . . 6 Kicked 6 | . . . 1 4 . 1 . . . Crushed . | . . . . . . . . . . Highest Temperature 344 | 50 30 19 242 280 159 242 184 155 344 Average Temperature 59 | 26 12 2 49 75 81 58 24 32 75 Received Heat Transfer 4125 | . 18 354 1521 360 . 608 71 9 1184 Effects 4 | . . . 1 3 . . . . . Energy Bleed 1 | . . . . 1 . . . . . Interference 3 | . . . 1 2 . . . . . Siege Activations . | . . . . . . . . . . Robots Corrupted . | . . . . . . . . . . Combat Hostiles . | . . . . . . . . . . Parts Fried . | . . . . . . . . . . Impact Corruptions . | . . . . . . . . . . Robots Melted 8 | . . . . 1 . 5 1 . 1 Combat Hostiles 5 | . . . . 1 . 3 1 . . Parts Melted 59 | . 1 . 1 12 2 33 1 1 8 Heat Transferred 25125 | 148 259 . 999 5600 650 11734 1150 1025 3560 Parts Sabotaged . | . . . . . . . . . . Parts Stolen . | . . . . . . . . . . Parts Stripped . | . . . . . . . . . . Power Chain Reactions 1 | . . . . . . . . . 1 Alert | -11 -10 -9 -8 -7 -6 -6 -6 -6 -6 ------- Run | Yrd Mat Mat Mat Fac Fac Ext Cet Arc Hub Peak Influence 2143 | . 198 292 987 914 627 968 709 335 2143 Initial 496 | . . 20 100 406 382 208 496 203 116 Average 528 | . 71 169 486 662 486 484 560 287 1406 Maximum Alert Level 5 | . . 1 3 3 2 3 3 1 5 Low Security (%) 17 | 100 100 49 6 . . 7 . 6 15 Level 1 21 | . . 50 18 2 47 29 1 93 4 Level 2 39 | . . . 67 44 52 48 76 . 1 Level 3 15 | . . . 8 53 . 14 22 . 8 Level 4 . | . . . . . . . . . 4 Level 5 2 | . . . . . . . . . 23 High Security 3 | . . . . . . . . . 42 Max Security . | . . . . . . . . . . Squads Dispatched 51 | . 1 3 12 12 2 2 . . 19 Investigation 11 | . 1 1 1 5 1 1 . . 1 Extermination 3 | . . . . 1 1 . . . 1 Reinforcement 14 | . . 2 6 1 . . . . 5 Assault 13 | . . . 2 . . 1 . . 10 Garrison 10 | . . . 3 5 . . . . 2 Intercept . | . . . . . . . . . . Searches Triggered . | . . . . . . . . . . Construction Impeded 4 | . . . 2 1 . . . . 1 Haulers Reinforced 2 | . . . . . . . . . 2 Active Scanning Responses . | . . . . . . . . . . Cargo Convoy Interrupts . | . . . . . . . . . . Stealth | -11 -10 -9 -8 -7 -6 -6 -6 -6 -6 --------- Run | Yrd Mat Mat Mat Fac Fac Ext Cet Arc Hub Distress Signals 14 | . 1 1 6 . . 1 2 . 3 Communications Jammed 1 | . . . . 1 . . . . . Distress Signals 1 | . . . . 1 . . . . . Times Spotted 304 | . 8 28 66 37 3 49 10 7 96 Peak Tracking Total 17 | . 4 5 7 5 1 6 5 2 17 Tactical Retreats 13 | . . 1 3 2 . 3 . . 4 Traps | -11 -10 -9 -8 -7 -6 -6 -6 -6 -6 ------- Run | Yrd Mat Mat Mat Fac Fac Ext Cet Arc Hub Traps Triggered 10 | . 3 1 . 4 . . . . 2 Indirectly . | . . . . . . . . . . Trap Hack Attempts . | . . . . . . . . . . Triggered . | . . . . . . . . . . Disarmed . | . . . . . . . . . . Reprogrammed . | . . . . . . . . . . Reused . | . . . . . . . . . . Traps Extracted . | . . . . . . . . . . Installed . | . . . . . . . . . . Triggered . | . . . . . . . . . . Machines | -11 -10 -9 -8 -7 -6 -6 -6 -6 -6 ---------- Run | Yrd Mat Mat Mat Fac Fac Ext Cet Arc Hub Machines Disabled 18 | . 2 . 1 4 . 1 . 3 7 Max in Single Turn 4 | . 2 . 1 4 . 1 . . 2 Garrison Access 3 | . . . . 1 1 . . . 1 Machines Repaired . | . . . . . . . . . . Machines Dismantled . | . . . . . . . . . . Machines Sabotaged . | . . . . . . . . . . Overloaded Fab Kills . | . . . . . . . . . . Hacking | -11 -10 -9 -8 -7 -6 -6 -6 -6 -6 --------- Run | Yrd Mat Mat Mat Fac Fac Ext Cet Arc Hub Machines Accessed 36 | . 3 1 4 7 5 12 2 . 2 Terminals 29 | . 3 . 4 3 4 12 2 . 1 Fabricators . | . . . . . . . . . . Repair Stations 1 | . . . . 1 . . . . . Recycling Units 1 | . . . . 1 . . . . . Scanalyzers 1 | . . 1 . . . . . . . Garrison Access 4 | . . . . 2 1 . . . 1 Total Hacks 83 | . 6 2 13 18 11 24 5 . 4 Successful 33 | . 2 2 7 4 3 9 2 . 4 Failed 50 | . 4 . 6 14 8 15 3 . . Catastrophic 10 | . 1 . 2 4 2 1 . . . Database Lockouts . | . . . . . . . . . . Manual 24 | . 2 . 4 3 7 4 1 . 3 Terminals 64 | . 6 . 13 6 8 24 5 . 2 Fabricators . | . . . . . . . . . . Repair Stations 3 | . . . . 3 . . . . . Recycling Units 4 | . . . . 4 . . . . . Scanalyzers 2 | . . 2 . . . . . . . Garrison Access 10 | . . . . 5 3 . . . 2 Terminal Hacks 21 | . 2 . 7 . 1 8 2 . 1 Record 1 | . . . . . . . 1 . . Prototype ID Bank 2 | . 1 . 1 . . . . . . Open Door 9 | . . . . . . 8 1 . . Terminal Index 1 | . . . 1 . . . . . . Alert Level 3 | . . . 1 . 1 . . . 1 Investigation Status 1 | . . . 1 . . . . . . Recall Investigation 1 | . . . 1 . . . . . . Registered Prototypes 1 | . 1 . . . . . . . . Zone Layout 2 | . . . 2 . . . . . . Fabricator Hacks . | . . . . . . . . . . Repair Station Hacks 1 | . . . . 1 . . . . . Scan Component 1 | . . . . 1 . . . . . Recycling Unit Hacks 2 | . . . . 2 . . . . . Report Inventory 1 | . . . . 1 . . . . . Retrieve Components 1 | . . . . 1 . . . . . Scanalyzer 2 | . . 2 . . . . . . . Insert Component 1 | . . 1 . . . . . . . Analyze 1 | . . 1 . . . . . . . Garrison Access Hacks 1 | . . . . 1 . . . . . Seal Access 1 | . . . . 1 . . . . . Unauthorized Hacks 6 | . . . . . 2 1 . . 3 Terminals 3 | . . . . . 1 1 . . 1 Botnet 3 | . . . . . 1 1 . . 1 Fabricators . | . . . . . . . . . . Repair Stations . | . . . . . . . . . . Recycling Units . | . . . . . . . . . . Scanalyzers . | . . . . . . . . . . Garrison Access 3 | . . . . . 1 . . . 2 Reprogram 1 | . . . . . . . . . 1 Intercept 1 | . . . . . . . . . 1 Jam 1 | . . . . . 1 . . . . Data Cores Recovered 3 | . . . 1 . 1 1 . . . Used . | . . . . . . . . . . Hacking Detections 29 | . 3 1 3 6 5 8 2 . 1 Full Trace Events 6 | . . . 1 4 . 1 . . . Feedback Events . | . . . . . . . . . . Feedback Blocked . | . . . . . . . . . . Robot Schematics Acquired . | . . . . . . . . . . Robots Built . | . . . . . . . . . . Authchips . | . . . . . . . . . . Time . | . . . . . . . . . . Total Robot Build Rating . | . . . . . . . . . . Part Schematics Acquired 1 | . . 1 . . . . . . . Parts Built . | . . . . . . . . . . Authchips . | . . . . . . . . . . Time . | . . . . . . . . . . Total Part Build Rating . | . . . . . . . . . . Parts Repaired . | . . . . . . . . . . Time . | . . . . . . . . . . Parts Recycled . | . . . . . . . . . . Recycled Matter . | . . . . . . . . . . Retrieved Matter . | . . . . . . . . . . Retrieved Components 9 | . . . . 9 . . . . . Parts Scanalyzed 1 | . . 1 . . . . . . . Part Schematics Acquired 1 | . . 1 . . . . . . . Parts Damaged . | . . . . . . . . . . Bothacking | -11 -10 -9 -8 -7 -6 -6 -6 -6 -6 ------------ Run | Yrd Mat Mat Mat Fac Fac Ext Cet Arc Hub Used RIF Installer . | . . . . . . . . . . Robots Hacked 2 | . . . . . . 1 . 1 . Non-combat . | . . . . . . . . . . Combat 2 | . . . . . . 1 . 1 . Robot Hacks Applied 2 | . . . . . . 1 . 1 . parse_system 2 | . . . . . . 1 . 1 . Relay Couplers Released 1 | . . . . . . . . . 1 Machine Destruction 1 | . . . . . . . . . 1 Fabnet Peak Effective % . | . . . . . . . . . . Robots Rewired 10 | . . . . . . 10 . . . Allies Hacked . | . . . . . . . . . . Hacks Repelled . | . . . . . . . . . . Allies | -11 -10 -9 -8 -7 -6 -6 -6 -6 -6 -------- Run | Yrd Mat Mat Mat Fac Fac Ext Cet Arc Hub Total Allies 26 | . . . . . . 20 5 . 1 Largest Group 19 | . . . . . . 19 19 19 13 Highest-Rated Group 996 | . . . . . . 648 996 996 700 Highest-Rated Ally 159 | . . . . . . 159 159 159 96 Total Orders . | . . . . . . . . . . Ally Attacks 316 | . . . . . . 61 77 53 125 Total Damage 8475 | . . . . . . 1165 1536 1436 4338 Kills 54 | . . . . . . 9 8 4 33 Allies Corrupted 1 | . . . . . . 1 . . . Allies Melted 1 | . . . . . . . . . 1 Intel | -11 -10 -9 -8 -7 -6 -6 -6 -6 -6 ------- Run | Yrd Mat Mat Mat Fac Fac Ext Cet Arc Hub Robot Analysis Total . | . . . . . . . . . . Derelict Logs Recovered . | . . . . . . . . . . Drone Launches . | . . . . . . . . . . Drone Recoveries . | . . . . . . . . . . Exploration | -11 -10 -9 -8 -7 -6 -6 -6 -6 -6 ------------- Run | Yrd Mat Mat Mat Fac Fac Ext Cet Arc Hub Turns Passed 7984 | 84 439 1046 1622 1248 429 1708 563 126 719 Spaces Moved 3901 | 44 201 417 685 709 295 913 343 54 240 Core 5 | 4 1 . . . . . . . . Treads 1660 | 40 200 417 552 . . . 157 54 240 Legs 2236 | . . . 133 709 295 913 186 . . Wheels . | . . . . . . . . . . Hover . | . . . . . . . . . . Flight . | . . . . . . . . . . Fastest Speed 50 | 50 160 160 125 120 125 125 120 160 160 Average Speed 140 | 150 160 160 153 125 126 128 142 160 160 Slowest Speed 200 | 160 200 160 160 195 130 130 190 160 160 Overloaded Moves . | . . . . . . . . . . Propulsion Burnouts . | . . . . . . . . . . Robots Hopped . | . . . . . . . . . . Cave-ins Triggered . | . . . . . . . . . . Exploration Rate (%) 44 | 3 47 43 50 20 8 84 79 75 33 Regions Visited 9 Branch Regions 4 Pre-discovered Areas . | . . . . . . . . . . Known Exits Taken 5 | . . . . 1 1 1 1 1 . Unknown Exits Taken 4 | 1 1 1 1 . . . . . . Scrap Searched . | . . . . . . . . . . Spaces Dug . | . . . . . . . . . . Terrain Destroyed 292 | . 21 . 178 35 . . . . 58 Melee . | . . . . . . . . . . Projectile 24 | . . . . . . . . . 24 AOE 268 | . 21 . 178 35 . . . . 34 Terrain Rammed . | . . . . . . . . . . Walls Destroyed . | . . . . . . . . . . Machines Disabled . | . . . . . . . . . . Actions | -11 -10 -9 -8 -7 -6 -6 -6 -6 -6 --------- Run | Yrd Mat Mat Mat Fac Fac Ext Cet Arc Hub Total 5228 | 55 253 629 1008 921 336 1188 399 71 368 Wait 324 | . 2 79 80 60 16 67 15 3 2 Move 3892 | 43 200 416 684 708 294 912 342 53 240 Hop . | . . . . . . . . . . Pick Up 68 | 2 4 8 12 16 5 10 5 1 5 Fast Attach 70 | 4 5 5 14 10 . 16 6 1 9 Attach 48 | 1 . . 8 10 3 8 4 . 14 Detach 17 | . . 1 2 5 1 5 3 . . Swap 107 | . 3 15 34 25 6 18 3 1 2 Drop 98 | . 2 18 19 20 5 20 11 1 2 Fire 549 | 5 33 86 152 63 6 97 10 10 87 Melee 4 | . . . . . . 2 . 1 1 Ram . | . . . . . . . . . . Kick 6 | . . . 1 4 . 1 . . . Crush 13 | . 4 1 2 . . . . . 6 Escape Stasis . | . . . . . . . . . . Rewire 32 | . . . . . . 32 . . . Trap . | . . . . . . . . . . Miscellaneous . | . . . . . . . . . . Route ------- -11/Scrapyard -10/Materials (discovered 2 exits: *Mat / [*Min]) -9/Materials (discovered 2 exits: *Mat / [*Min]) -8/Materials -7/Factory -6/Factory -6/Extension (discovered 2 exits: *Fac / *Cet) -6/Cetus (discovered 2 exits: *Fac / *Arc) -6/Archives (discovered 2 exits: *Fac / *Hub) -6/Hub_04(d) (discovered 2 exits: *Fac x2) History --------- Turn | Location | Event 5 | -11/Scrapyard | Discovered new exit (range 15) 85 | -11/Scrapyard | Entered Materials 312 | -10/Materials | Build established: Mutant 348 | -10/Materials | Core integrity fell below 50% 385 | -10/Materials | Discovered new exit (range 12) 510 | -10/Materials | Discovered new exit (range 10) 524 | -10/Materials | Entered another Materials area 524 | -9/Materials | Evolved 2 slots: Utility x2 915 | -9/Materials | Build established: Scavenger-Mutant 1035 | -9/Materials | Discovered new exit (range 8) 1456 | -9/Materials | Discovered new exit (range 4) 1570 | -9/Materials | Entered another Materials area 1570 | -8/Materials | Evolved 2 slots: Propulsion x2 2093 | -8/Materials | Build established: Mutant 2790 | -8/Materials | Garrison activated, responded to threat 2830 | -8/Materials | Lost 3 parts (2n1u) 2886 | -8/Materials | Core integrity fell below 50% 2965 | -8/Materials | Lost 6 parts (2n1u3w) 3002 | -8/Materials | Core integrity fell below 20% 3049 | -8/Materials | Lost 3 parts (1p2n) 3154 | -8/Materials | Discovered new exit (range 14) 3170 | -8/Materials | First assault squad dispatched 3192 | -8/Materials | Entered Factory 3192 | -7/Factory | Evolved 2 slots: Utility x2 3651 | -7/Factory | Lost 3 parts (2n1w) 3657 | -7/Factory | Build established: Scavenger-Mutant 3777 | -7/Factory | Garrison activated, responded to threat 4084 | -7/Factory | Garrison activated, responded to threat 4364 | -7/Factory | Discovered new exit (range 15) 4384 | -7/Factory | Identified exit to Factory 4416 | -7/Factory | Garrison activated, responded to threat 4440 | -7/Factory | Entered another Factory area 4440 | -6/Factory | Evolved 2 slots: Utility x1, Weapon x1 4844 | -6/Factory | Discovered new exit (range 15) 4862 | -6/Factory | Identified exit to Extension 4869 | -6/Factory | Entered Extension 5119 | -6/Extension | Disrupted transfer network 5140 | -6/Extension | Spotted B-75 Beast 5169 | -6/Extension | Destroyed B-75 Beast 5194 | -6/Extension | Spotted B-75 Beast 5237 | -6/Extension | Destroyed B-75 Beast 5261 | -6/Extension | Lost 5 parts (2n1u2w) 5723 | -6/Extension | Rescued a captive Derelict 5741 | -6/Extension | Rescued a captive Derelict 5904 | -6/Extension | Rescued a captive Derelict 6179 | -6/Extension | Rescued A7 6215 | -6/Extension | Rescued a captive Derelict 6215 | -6/Extension | Rescued a captive Derelict 6269 | -6/Extension | First assault squad dispatched 6382 | -6/Extension | Rescued a captive Derelict 6406 | -6/Extension | Rescued a captive Derelict 6483 | -6/Extension | Rescued a captive Derelict 6484 | -6/Extension | Rescued a captive Derelict 6521 | -6/Extension | Discovered new exit (range 10) 6523 | -6/Extension | Discovered new exit (range 6) 6544 | -6/Extension | Identified exit to Factory 6559 | -6/Extension | Identified exit to Cetus 6577 | -6/Extension | Entered Cetus 6577 | -6/Cetus | Accompanied by 19 allies (A7) 6582 | -6/Cetus | Acquired a Cetus Manufacturing Module code from A7 6595 | -6/Cetus | Spotted Cetus Guard 6595 | -6/Cetus | Spotted Cetus Guard 6597 | -6/Cetus | Spotted Cetus Guard 6597 | -6/Cetus | Spotted Cetus Guard 6626 | -6/Cetus | Allies destroyed Cetus Guard 6629 | -6/Cetus | Allies destroyed Cetus Guard 6630 | -6/Cetus | Allies destroyed Cetus Guard 6632 | -6/Cetus | Allies destroyed Cetus Guard 6635 | -6/Cetus | Lost 3 parts (2n1w) 6651 | -6/Cetus | Lost 5 allies 6788 | -6/Cetus | Escorted A7 to Cetus Mainframe 6800 | -6/Cetus | Started Cetus Manufacturing Module 6814 | -6/Cetus | Discovered new exit (range 15) 6825 | -6/Cetus | Manufactured an Enhanced Grunt 6836 | -6/Cetus | Spotted Cetus Guard 6836 | -6/Cetus | Spotted Cetus Guard 6839 | -6/Cetus | Spotted Cetus Guard 6839 | -6/Cetus | Spotted Cetus Guard 6842 | -6/Cetus | Allies destroyed Cetus Guard 6844 | -6/Cetus | Destroyed Cetus Guard 6844 | -6/Cetus | Allies destroyed Cetus Guard 6846 | -6/Cetus | Allies destroyed Cetus Guard 6850 | -6/Cetus | Manufactured an Enhanced Grunt 6859 | -6/Cetus | Discovered exit to Factory (range 15) 6865 | -6/Cetus | Met Revision 17 6875 | -6/Cetus | Manufactured an Enhanced Grunt 6900 | -6/Cetus | Manufactured an Enhanced Grunt 6925 | -6/Cetus | Manufactured an Enhanced Grunt 7126 | -6/Cetus | Identified exit to Archives 7140 | -6/Cetus | Entered Archives 7140 | -6/Archives | Accompanied by 19 allies (A7) 7145 | -6/Archives | Received a hacking code to weaken MAIN.C 7203 | -6/Archives | Discovered exit to Factory (range 15) 7215 | -6/Archives | Lost 5 allies 7221 | -6/Archives | Discovered new exit (range 15) 7258 | -6/Archives | Identified exit to Hub_04(d) 7266 | -6/Archives | Entered Hub_04(d) 7266 | -6/Hub_04(d) | Accompanied by 13 allies 7348 | -6/Hub_04(d) | Garrison activated, responded to threat 7450 | -6/Hub_04(d) | Lost 4 allies 7456 | -6/Hub_04(d) | Garrison activated, responded to threat 7496 | -6/Hub_04(d) | Found Exp. Thermal Shield 7542 | -6/Hub_04(d) | Discovered exit to Factory (range 15) 7577 | -6/Hub_04(d) | Discovered exit to Factory (range 15) 7616 | -6/Hub_04(d) | First assault squad dispatched 7665 | -6/Hub_04(d) | Lost 5 allies 7678 | -6/Hub_04(d) | High security lockdown imminent 7758 | -6/Hub_04(d) | High security lockdown engaged 7846 | -6/Hub_04(d) | Core integrity fell below 50% 7897 | -6/Hub_04(d) | Destroyed 8 combat bots 7923 | -6/Hub_04(d) | System corruption reached 10% 7959 | -6/Hub_04(d) | Core integrity fell below 20% 7985 | -6/Hub_04(d) | Destroyed by G-67 Veteran with Field Laser Last Messages --------------- 07971_ M-28 Smith repairs G-50 Soldier. 07973_ System corrupted: FCS attempts to trigger Gauss Rifle. 07973_ System corrupted: Gauss Rifle misfires. 07973_ Slug penetrates Wall. 07974_ M-28 Smith fits Backup Power III on G-50 Soldier. 07975_ The unstable cave ceiling collapses. 07975_ Slug penetrates Backup Mainframe. 07977_ Slug penetrates G-50 Soldier. 07978_ C-30 ARC bursts open, deploying its payload. 07978_ G-67 Veteran unfolds itself. 07978_ G-50 Soldier unfolds itself. 07978_ I-36 Angel unfolds itself. 07979_ Slug penetrates I-36 Angel. 07980_ Critical hit (Burn: +37). 07981_ Neutrino Core lost to overload. 07981_ I-36 Angel Hcp. Battery blown off. 07981_ I-36 Angel Com. Wheel blown off. 07981_ I-36 Angel Imp. Deuterium Engine blown off. 07982_ Gauss Rifle destroyed. 07985_ Slug penetrates Backup Mainframe. Map ----- +----------------------------------------------------+ | ???????????????????????????????????????# #??#### | | ???????????????????????????????????????#! #????# | | ???????????????????????????????????????#%= #????# | | ???????????????????????????????????????" #????# | | ??????????????????????????????????????## ! #????# | | ???????????????????????????????????????#=%*#????# | | ??????????????????????????????????????? = #????# | | ??????????????????????????????????????? #????# | | ??????????????????????????????????????## % #????#? | | ?????????????????????????????#########?#*% ##????? | | ?????????????????????????????# #= %##????? | | ?????????????????????????????# #%**##????? | | ?????????????????????????????# +=!*#?????? | | ?????????????????????????????? " " #%= #?????? | | ?????????????????????????????? " " # #?????? | | ?????????????????????????????? " " " # #?????? | | ??????????????????????????#### "T" #"" #?????? | | ??????????????????????????# """ "%%"####### | | ???????????????????????#### """"*" ^ " | | ???????????????????????# !*% == [!%"!% "%" | | ???????????????????????# ii!=]lgg=*/%=|%==% " | | ???????????????????????#g"""m=%%[!=[%="##""####### | | ???????????????????????# "" ![=g*i# "![ ????? | | ???????????????????????#h"""%g=!* ## #??? | | ???????????????????????# ""ggg#* #### #??? | | ???????????????????????# @*= ## #??# #??? | | ???????????????????????# = !#?# #?# !! #??? | | ???????????????????????# "" #??# ## !! #??? | | ???????????????????????# "T #???### #??? | | ???????????????????????# "" #?????# #??? | | ???????????????????????# "" #?????###########??? | | ???????????????????????# #??????????????????? | | ???????????????????????########??????????????????? | | ?????????????????????????????????????????????????? | | | | | | | | | | | | | | | | | | | | | | | | | | | | | | | | | +----------------------------------------------------+ Best States ------------- Heat Dissipation 78 Energy Generation 25 Energy Capacity 350 Matter Stores 300 Matter Capacity 300 Sight Range 20 Robot Scan Range 15 Terrain Scan Range 16 Terrain Scan Density 210 Jamming Range 12 Armor Coverage 600 Resistance: KI 20 Resistance: TH 30 Evasion (%) 55 Targeting Accuracy 5 Target Analysis 5 Core Analysis 6 Recoil Reduction 4 Offensive Hacking 24 Item Schematics ----------------- Sensor Array | -9/Materials | Scanalyzed Robot Schematics ------------------ None Fabricated ------------ Nothing Alien Tech Used ----------------- None Achievements -------------- None Challenges ------------ None Game ------ Seed PortableMediumMaul Manual? 0 Play Time 01:00:22 Cumulative 167.8 hours Start 2025.01.20 @ 02:15:29 End 2025.01.20 @ 03:14:18 Sessions 1 Manual Loads 0 Difficulty Rogue Special Mode None Game No. 186 Rogue 186 Adventurer 0 Explorer 0 Win Type - Total 3 Types 2/0/1/0/0/0/0/0/0 Lore% 64 Gallery% 72 Achievement% 54 Wizard Run 0 Options --------- Layout 0 ASCII 0 Keyboard 1 Movement Numpad Keybinds 0 Fullscreen 2 Font 18/SmallcapsGlow Map View 76x50 Zoom Use 0% Tactical HUD 1 Map Filters NONE Filters NONE Steam 1 RUN: e29986a9-0216-4785-ae89-77051b2385b1